bitfinex-derivatives/quotes_SOLF0:USTF0_20220106
["timestamp","ask_amount","ask_price","bid_price","bid_amount"]
[1641480335321,0.33139332,150.75,150.73,27.66479]
[1641480335823,0.33139332,150.74,150.73,27.66479]
[1641480336621,27.66479,150.81,150.73,27.66479]
[1641480336822,0.33139332,150.78,150.73,27.66479]
[1641480337022,27.66479,150.81,150.73,27.66479]
[1641480337423,0.33139332,150.77,150.73,27.66479]
[1641480337623,0.33139332,150.76,150.73,27.66479]
[1641480337823,31.66479,150.81,150.73,27.66479]
[1641480337824,0.33139332,150.75,150.73,27.66479]
[1641480338022,0.33139332,150.76,150.73,27.66479]
[1641480338224,4.0,150.8,150.73,27.66479]
[1641480338423,0.33139332,150.74,150.73,27.66479]
[1641480338623,0.33139332,150.74,150.71,41.73721286]
[1641480339724,0.33139332,150.74,150.71,27.66479]
[1641480340525,4.33139332,150.72,150.71,27.66479]
[1641480340727,4.33139332,150.72,150.69,45.49023251]
[1641480340926,4.33139332,150.7,150.69,3.75301965]
[1641480341327,4.33139332,150.7,150.68,14.07242286]
[1641480341529,4.33139332,150.69,150.62,1.965e-05]
[1641480341728,0.33139332,150.63,150.62,1.965e-05]
[1641480341926,0.33139332,150.63,150.55,6.63195941]
[1641480341927,0.33139332,150.63,150.6,11.37925799]
[1641480342127,0.33139332,150.61,150.6,11.37925799]
[1641480343028,0.33139332,150.61,150.57,27.66479]
[1641480343229,0.33139332,150.6,150.57,27.66479]
[1641480343428,4.0,150.66,150.57,27.66479]
[1641480344229,0.33139332,150.58,150.57,27.66479]
[1641480345932,0.33139332,150.58,150.56,11.37925799]
[1641480346132,0.33139332,150.57,150.56,11.37925799]
[1641480347432,0.33139332,150.57,150.53,11.37925799]
[1641480347633,4.0,150.58,150.53,11.37925799]
[1641480347833,4.33139332,150.54,150.53,11.37925799]
[1641480348033,0.33139332,150.54,150.53,11.37925799]
[1641480348632,0.33139332,150.54,150.53,18.41564048]
[1641480348633,4.33139332,150.54,150.53,18.41564048]
[1641480348832,0.33139332,150.54,150.53,18.41564048]
[1641480349032,4.33139332,150.54,150.53,18.41564048]
[1641480349434,4.33139332,150.54,150.49,56.0263052]
[1641480349633,0.33139332,150.5,150.49,56.0263052]
[1641480349834,0.33139332,150.5,150.44,93.79393092]
[1641480349835,0.33139332,150.5,150.47,56.0263052]
[1641480350034,0.33139332,150.48,150.47,56.0263052]
[1641480351039,0.33139332,150.48,150.45,83.6910952]
[1641480351240,0.33139332,150.46,150.45,83.6910952]
[1641480352340,0.33139332,150.46,150.45,27.66479]
[1641480352539,0.33139332,150.46,150.42,71.98266073]
[1641480352739,0.33139332,150.45,150.42,71.98266073]
[1641480353140,0.33139332,150.45,150.41,71.98266073]
[1641480353341,3.27228835,150.51,150.42,0.72771165]
[1641480353542,3.27228835,150.52,150.42,0.72771165]
[1641480353743,3.27228835,150.51,150.42,0.72771165]
[1641480353943,3.27228835,150.52,150.43,28.39250165]
[1641480354142,4.69909399,150.53,150.43,31.66479]
[1641480354343,4.69909399,150.53,150.46,4.0]
[1641480354545,4.69909399,150.53,150.45,4.0]
[1641480354743,4.69909399,150.55,150.46,4.0]
[1641480354943,7.97138234,150.55,150.5,0.72771165]
[1641480355146,3.27228835,150.54,150.43,38.30203156]
[1641480355344,3.27228835,150.54,150.43,31.66479]
[1641480355543,3.27228835,150.54,150.45,56.0263052]
[1641480355745,3.27228835,150.54,150.49,0.72771165]
[1641480355945,4.69909399,150.58,150.5,28.39250165]
[1641480356346,4.69909399,150.57,150.5,27.66479]
[1641480356545,4.69909399,150.57,150.55,0.72771165]
[1641480356746,4.69909399,150.57,150.56,0.72771165]
[1641480357447,4.69909399,150.6,150.56,0.72771165]
[1641480357646,3.27228835,150.59,150.55,0.72771165]
[1641480357846,4.69909399,150.6,150.56,0.72771165]
[1641480358045,4.69909399,150.6,150.57,0.72771165]
[1641480358245,4.69909399,150.6,150.55,27.66479]
[1641480358545,7.97138234,150.62,150.57,0.72771165]
[1641480358747,3.27228835,150.61,150.57,0.72771165]
[1641480358945,7.97138234,150.62,150.57,0.72771165]
[1641480359447,3.27228835,150.62,150.57,0.72771165]
[1641480359649,4.69909399,150.63,150.58,0.72771165]
[1641480360449,7.97138234,150.65,150.58,0.72771165]
[1641480360649,4.69909399,150.65,150.58,0.72771165]
[1641480360849,7.97138234,150.65,150.58,0.72771165]
[1641480361049,7.97138234,150.65,150.55,27.66479]
[1641480361249,3.27228835,150.65,150.55,27.66479]
[1641480361449,3.27228835,150.65,150.58,0.72771165]
[1641480361650,3.27228835,150.64,150.58,0.72771165]
[1641480362351,3.27228835,150.65,150.58,0.72771165]
[1641480362551,68.52838835,150.69,150.55,27.66479]
[1641480362850,65.2561,150.69,150.64,0.72771165]
[1641480363050,9.90490757,150.71,150.58,4.0]
[1641480363251,3.27228835,150.73,150.65,0.72771165]
[1641480363450,3.27228835,150.74,150.61,6.62932149]
[1641480363650,3.27228835,150.74,150.62,4.0]
[1641480364050,3.27228835,150.74,150.67,28.39250165]
[1641480364249,3.27228835,150.74,150.67,27.66479]
[1641480364651,3.27228835,150.73,150.67,27.66479]
[1641480364852,3.27228835,150.74,150.67,27.66479]
[1641480365253,3.27228835,150.74,150.68,0.72771165]
[1641480365552,3.27228835,150.74,150.7,4.61980394]
[1641480365754,4.69909399,150.71,150.7,4.61980394]
[1641480367960,7.97138234,150.71,150.64,27.66479]
[1641480368160,3.27228835,150.65,150.64,27.66479]
[1641480368360,27.66479,150.7,150.63,37.54927603]
[1641480368361,3.27228835,150.67,150.63,37.54927603]
[1641480368562,3.27228835,150.68,150.63,37.54927603]
[1641480368762,3.27228835,150.7,150.63,38.27698768]
[1641480368962,3.27228835,150.71,150.63,38.27698768]
[1641480369162,30.93707835,150.72,150.63,0.72771165]
[1641480369364,30.93707835,150.72,150.6,27.66479]
[1641480369562,30.93707835,150.72,150.62,0.72771165]
[1641480369765,30.93707835,150.72,150.65,0.72771165]
[1641480369766,3.27228835,150.71,150.65,0.72771165]
[1641480369965,3.27228835,150.69,150.61,7.75750438]
[1641480370166,3.27228835,150.68,150.61,7.75750438]
[1641480370368,3.27228835,150.69,150.61,7.75750438]
[1641480370665,3.27228835,150.7,150.61,7.75750438]
[1641480370864,3.27228835,150.68,150.62,0.72771165]
[1641480371164,3.27228835,150.7,150.61,7.02979273]
[1641480371366,3.27228835,150.7,150.63,0.72771165]
[1641480371666,3.27228835,150.7,150.63,2.19055347]
[1641480372268,3.27228835,150.69,150.63,2.19055347]
[1641480372469,3.27228835,150.68,150.63,1.46284182]
[1641480372668,27.66479,150.72,150.63,1.46284182]
[1641480372669,6.50385844,150.69,150.64,1.46284182]
[1641480372968,3.27228835,150.65,150.64,1.46284182]
[1641480373169,6.50385844,150.69,150.64,1.46284182]
[1641480373371,3.27228835,150.67,150.64,1.46284182]
[1641480373569,3.27228835,150.67,150.61,22.5758765]
[1641480373770,3.27228835,150.65,150.61,22.5758765]
[1641480374370,3.27228835,150.64,150.61,22.5758765]
[1641480374771,3.27228835,150.65,150.6,14.08324195]
[1641480375171,3.27228835,150.64,150.6,14.08324195]
[1641480375370,34.29894929,150.67,150.6,14.08324195]
[1641480375371,34.29894929,150.67,150.61,0.72771165]
[1641480375572,34.29894929,150.67,150.6,14.8109536]
[1641480375772,3.27228835,150.63,150.59,22.5758765]
[1641480375971,3.27228835,150.62,150.59,22.5758765]
[1641480376173,30.93707835,150.62,150.59,22.5758765]
[1641480376373,3.27228835,150.61,150.59,22.5758765]
[1641480376773,3.27228835,150.64,150.57,14.8109536]
[1641480377575,3.23390198,150.63,150.59,0.72771165]
[1641480378174,3.23390198,150.63,150.59,28.39250165]
[1641480378476,3.23390198,150.66,150.6,15.54608377]
[1641480378673,3.23390198,150.66,150.62,0.72771165]
[1641480378873,3.23390198,150.66,150.6,15.54608377]
[1641480379273,3.23390198,150.66,150.62,0.72771165]
[1641480379474,3.23390198,150.66,150.6,15.54608377]
[1641480379674,6.50619033,150.68,150.63,1.46284182]
[1641480379874,3.27228835,150.64,150.63,1.46284182]
[1641480381275,3.23390198,150.64,150.6,1.46284182]
[1641480381877,9.86960205,150.64,150.6,1.46284182]
[1641480382078,6.63570007,150.64,150.6,1.46284182]
[1641480382979,6.63570007,150.64,150.59,14.08324195]
[1641480382980,9.90798842,150.64,150.58,22.57598362]
[1641480383279,6.63570007,150.64,150.58,22.57598362]
[1641480383479,3.27228835,150.62,150.58,22.57598362]
[1641480383681,3.27228835,150.61,150.58,1.46284182]
[1641480383881,3.27228835,150.62,150.58,1.46284182]
[1641480384080,3.27228835,150.63,150.58,1.46284182]
[1641480384481,3.27228835,150.62,150.58,1.46284182]
[1641480384880,3.27228835,150.59,150.58,4.182e-05]
[1641480385184,9.90930965,150.61,150.55,14.08324195]
[1641480385379,3.27228835,150.6,150.55,14.08324195]
[1641480385580,9.90930965,150.61,150.55,14.08324195]
[1641480385780,6.6370213,150.61,150.55,14.8109536]
[1641480385980,6.6370213,150.61,150.55,14.08324195]
[1641480386181,6.6370213,150.61,150.55,14.8109536]
[1641480386381,6.6370213,150.61,150.55,0.72771165]
[1641480387182,6.6370213,150.61,150.54,14.08324195]
[1641480387382,6.6370213,150.61,150.58,0.72771165]
[1641480387583,30.93707835,150.63,150.58,0.72771165]
[1641480388484,27.66479,150.63,150.57,0.72771165]
[1641480388884,27.66479,150.63,150.53,7.01116901]
[1641480388885,27.66479,150.63,150.56,14.08324195]
[1641480389185,27.66479,150.63,150.57,0.72771165]
[1641480389586,27.66479,150.63,150.56,14.08324195]
[1641480389985,30.93707835,150.63,150.56,14.08324195]
[1641480390285,30.93707835,150.63,150.57,0.72771165]
[1641480390785,30.93707835,150.63,150.56,14.08324195]
[1641480391291,3.27228835,150.62,150.56,14.08324195]
[1641480391488,71.94075977,150.65,150.58,0.72771165]
[1641480391689,6.63525977,150.65,150.56,14.08324195]
[1641480391889,14.08324195,150.64,150.56,14.08324195]
[1641480392092,14.08324195,150.64,150.59,0.72771165]
[1641480392392,14.08324195,150.64,150.56,14.08324195]
[1641480392590,14.08324195,150.64,150.59,0.72771165]
[1641480392790,3.27228835,150.64,150.59,14.08324195]
[1641480393391,3.27228835,150.6,150.59,14.08324195]
[1641480393591,3.27228835,150.6,150.56,37.54927603]
[1641480393791,6.63658083,150.62,150.57,7.01116901]
[1641480393992,3.27228835,150.58,150.57,7.01116901]
[1641480394493,3.27228835,150.59,150.55,37.54927603]
[1641480394693,27.66479,150.59,150.54,0.72771165]
[1641480394996,3.27228835,150.6,150.54,0.72771165]
[1641480395192,3.27228835,150.59,150.51,0.72771165]
[1641480395593,3.27228835,150.59,150.53,0.72771165]
[1641480396493,3.27228835,150.59,150.5,45.28815669]
[1641480396693,3.27228835,150.58,150.5,44.56044504]
[1641480397293,3.27228835,150.58,150.51,0.72771165]
[1641480397692,3.27228835,150.58,150.5,44.56044504]
[1641480397893,3.27228835,150.58,150.51,0.72771165]
[1641480398093,3.27228835,150.58,150.5,44.56044504]
[1641480398395,3.27228835,150.57,150.5,45.28815669]
[1641480398594,3.27228835,150.57,150.5,7.73888066]
[1641480398794,27.66479,150.57,150.5,7.73888066]
[1641480398995,30.93707835,150.57,150.5,7.01116901]
[1641480399195,27.66479,150.57,150.5,7.01116901]
[1641480399394,27.66479,150.57,150.5,7.73888066]
[1641480399595,3.27228835,150.53,150.5,7.01116901]
[1641480399994,3.27228835,150.54,150.5,7.01116901]
[1641480400495,3.27228835,150.51,150.48,44.56044504]
[1641480400695,3.27228835,150.49,150.48,2.90114504]
[1641480400897,27.66479,150.49,150.48,2.90114504]
[1641480401097,30.93707835,150.49,150.48,2.90114504]
[1641480401296,30.93707835,150.49,150.44,56.0263052]
[1641480401496,3.27228835,150.48,150.42,0.72771165]
[1641480401695,30.93707835,150.49,150.42,0.72771165]
[1641480401896,30.93707835,150.49,150.4,87.45075744]
[1641480402099,27.66479,150.49,150.43,0.72771165]
[1641480402297,30.93707835,150.49,150.43,0.72771165]
[1641480402495,30.93707835,150.49,150.4,42.84747167]
[1641480402697,30.93707835,150.49,150.43,0.72771165]
[1641480403596,27.66479,150.49,150.43,0.72771165]
[1641480403796,27.66479,150.49,150.4,42.84747167]
[1641480403997,30.93707835,150.49,150.44,0.72771165]
[1641480404197,27.66479,150.49,150.43,0.72771165]
[1641480404597,27.66479,150.49,150.4,114.81754606]
[1641480404998,27.66479,150.49,150.4,142.48233606]
[1641480405397,27.66479,150.49,150.44,0.72771165]
[1641480405599,30.93707835,150.53,150.45,0.72771165]
[1641480405799,3.27228835,150.52,150.45,0.72771165]
[1641480406002,3.27228835,150.52,150.41,71.44932463]
[1641480406302,27.66479,150.53,150.46,0.72771165]
[1641480406499,27.66479,150.53,150.41,71.44932463]
[1641480406500,27.66479,150.53,150.47,0.72771165]
[1641480406699,3.27228835,150.51,150.41,71.20898687]
[1641480406900,3.27228835,150.51,150.41,3.75966224]
[1641480407100,3.27228835,150.5,150.43,0.72771165]
[1641480407404,3.27228835,150.51,150.43,0.72771165]
[1641480407901,3.27228835,150.51,150.4,59.08924224]
[1641480408101,3.27228835,150.48,150.4,59.08924224]
[1641480408302,3.27228835,150.44,150.4,3.75966224]
[1641480408502,3.27228835,150.44,150.38,62.64001165]
[1641480408702,3.27228835,150.46,150.33,60.0263052]
[1641480408903,27.66479,150.43,150.35,27.66479]
[1641480409101,27.66479,150.43,150.37,3.76043478]
[1641480410001,27.66479,150.43,150.37,4.48814643]
[1641480410403,27.66479,150.43,150.37,3.76043478]
[1641480410804,30.93707835,150.43,150.35,28.39250165]
[1641480411103,27.66479,150.43,150.35,28.39250165]
[1641480411303,30.93707835,150.43,150.35,28.39250165]
[1641480411503,27.66479,150.43,150.35,28.39250165]
[1641480411904,30.93707835,150.43,150.35,27.66479]
[1641480412103,27.66479,150.43,150.35,27.66479]
[1641480412303,3.27228835,150.37,150.35,27.66479]
[1641480412504,3.27228835,150.36,150.33,3.76043478]
[1641480412703,3.27228835,150.35,150.33,3.76043478]
[1641480413002,3.27228835,150.35,150.28,0.72771165]
[1641480413203,3.27228835,150.36,150.28,0.72771165]
[1641480413405,3.27228835,150.35,150.27,27.66479]
[1641480413604,3.27228835,150.32,150.27,27.66479]
[1641480413803,47.66479,150.37,150.27,27.66479]
[1641480414003,27.66479,150.37,150.27,27.66479]
[1641480414603,27.66479,150.37,150.27,56.0263052]
[1641480414804,54.31262115,150.37,150.27,56.0263052]
[1641480415004,27.66479,150.32,150.27,56.0263052]
[1641480415204,6.65048382,150.31,150.27,56.0263052]
[1641480415704,26.65048382,150.31,150.27,56.0263052]
[1641480415906,26.65048382,150.31,150.24,56.0263052]
[1641480417107,27.66479,150.29,150.21,43.61539143]
[1641480417307,27.66479,150.29,150.21,27.66479]
[1641480417505,27.66479,150.29,150.21,31.66479]
[1641480417706,27.66479,150.29,150.21,27.66479]
[1641480418309,27.66479,150.29,150.21,31.66479]
[1641480418509,27.66479,150.29,150.21,27.66479]
[1641480418711,27.66479,150.29,150.22,4.0]
[1641480418910,6.65048382,150.31,150.25,4.0]
[1641480419113,27.66479,150.32,150.26,4.0]
[1641480419312,27.66479,150.34,150.29,4.0]
[1641480419612,6.6465056,150.4,150.25,4.0]
[1641480419812,6.6465056,150.4,150.34,4.0]
[1641480420416,62.2557,150.41,150.31,4.0]
[1641480420613,20.0,150.45,150.37,4.0]
[1641480420614,6.64518058,150.43,150.37,4.0]
[1641480421216,6.64518058,150.43,150.34,37.62249956]
[1641480421612,6.64628473,150.4,150.34,37.62249956]
[1641480422315,6.64628473,150.4,150.32,44.64258757]
[1641480422912,6.64628473,150.4,150.32,48.64258757]
[1641480423116,6.64628473,150.4,150.33,37.62249956]
[1641480423313,6.64628473,150.4,150.33,41.62249956]
[1641480424014,6.64628473,150.4,150.36,14.10866124]
[1641480424416,27.66479,150.41,150.38,4.0]
[1641480424615,27.66479,150.41,150.36,14.10866124]
[1641480424817,27.66479,150.41,150.4,4.0]
[1641480425016,6.6449598,150.43,150.36,14.10866124]
[1641480425216,6.6449598,150.43,150.36,18.10866124]
[1641480425418,6.6449598,150.43,150.37,4.0]
[1641480425818,6.6449598,150.43,150.38,14.10866124]
[1641480427518,27.66479,150.44,150.38,14.10866124]
[1641480427719,27.66479,150.44,150.38,18.10866124]
[1641480428121,27.66479,150.44,150.38,14.10866124]
[1641480428323,4.70206019,150.43,150.42,4.70206019]
[1641480431026,4.70206019,150.43,150.42,6.019e-05]
[1641480431726,26.64518058,150.43,150.35,44.64258757]
[1641480431928,29.89096448,150.43,150.35,1.45661811]
[1641480432227,6.64871514,150.36,150.35,1.45661811]
[1641480432629,6.64871514,150.36,150.34,49.5255759]
[1641480432830,6.64871514,150.36,150.3,56.0263052]
[1641480433029,6.64871514,150.36,150.28,11.01951559]
[1641480433529,6.64871514,150.36,150.28,38.68430559]
[1641480433730,6.64871514,150.36,150.33,4.0]
[1641480434133,6.64871514,150.36,150.29,4.0]
[1641480434531,6.64871514,150.36,150.34,4.0]
[1641480435031,6.64672649,150.39,150.35,8.0]
[1641480435234,6.64407681,150.45,150.38,4.0]
[1641480435430,6.64407681,150.45,150.4,4.0]
[1641480436432,6.64407681,150.45,150.34,27.66479]
[1641480436635,6.64407681,150.45,150.37,4.0]
[1641480437034,6.64407681,150.45,150.36,4.0]
[1641480437234,6.64407681,150.45,150.37,4.0]
[1641480437434,6.64407681,150.45,150.34,27.66479]
[1641480438435,6.64407681,150.45,150.36,4.0]
[1641480438935,6.64407681,150.45,150.34,27.66479]
[1641480439441,6.64407681,150.45,150.37,4.0]
[1641480440039,6.64407681,150.45,150.39,4.0]
[1641480440239,6.64407681,150.45,150.34,27.66479]
[1641480440839,6.64407681,150.45,150.38,4.0]
[1641480441341,6.64407681,150.45,150.34,27.66479]
[1641480442238,6.64407681,150.45,150.39,4.0]
[1641480442438,6.64407681,150.45,150.34,27.66479]
[1641480442439,6.64407681,150.45,150.38,4.0]
[1641480442639,6.64407681,150.45,150.4,4.0]
[1641480442841,27.66479,150.47,150.42,4.0]
[1641480443440,27.66479,150.47,150.41,4.0]
[1641480443840,27.66479,150.47,150.39,4.0]
[1641480444042,6.64275276,150.48,150.43,4.0]
[1641480444243,6.64275276,150.48,150.38,4.0]
[1641480444443,6.64142924,150.51,150.44,4.0]
[1641480444643,6.64142924,150.51,150.39,69.996]
[1641480444845,6.64142924,150.51,150.41,4.0]
[1641480445045,6.6403267,150.54,150.39,65.996]
[1641480445244,6.6403267,150.54,150.47,4.0]
[1641480445446,6.6403267,150.54,150.45,4.0]
[1641480445647,27.66479,150.51,150.45,4.0]
[1641480445848,27.66479,150.51,150.43,4.0]
[1641480446047,27.66479,150.51,150.41,27.66479]
[1641480446249,27.66479,150.51,150.43,4.0]
[1641480446447,27.66479,150.51,150.44,4.0]
[1641480448253,6.64209093,150.5,150.44,4.0]
[1641480448852,27.66479,150.51,150.44,4.0]
[1641480449153,6.64098818,150.52,150.4,27.66479]
[1641480449352,6.64098818,150.52,150.44,4.0]
[1641480449653,6.64098818,150.52,150.4,27.66479]
[1641480449954,6.64385609,150.46,150.4,43.07290675]
[1641480450152,6.64385609,150.46,150.4,11.40811675]
[1641480450753,6.64385609,150.46,150.42,4.0]
[1641480450953,6.64297339,150.48,150.39,4.0]
[1641480451355,6.64297339,150.48,150.37,95.35469]
[1641480451553,6.64297339,150.48,150.37,99.35469]
[1641480451754,27.66479,150.48,150.44,4.0]
[1641480452154,27.66479,150.48,150.37,99.35469]
[1641480452353,27.66479,150.48,150.37,95.35469]
[1641480452559,27.66479,150.48,150.37,99.35469]
[1641480452855,27.66479,150.48,150.43,4.0]
[1641480453055,27.66479,150.48,150.44,4.0]
[1641480453454,27.66479,150.48,150.38,11.40879487]
[1641480453655,27.66479,150.48,150.44,4.0]
[1641480454058,27.66479,150.48,150.38,11.40879487]
[1641480454257,27.66479,150.48,150.42,4.0]
[1641480454657,27.66479,150.48,150.41,4.0]
[1641480455159,27.66479,150.48,150.4,41.59996565]
[1641480455357,6.64341472,150.47,150.4,37.59996565]
[1641480455557,6.64341472,150.47,150.41,4.0]
[1641480455759,6.64341472,150.47,150.39,4.0]
[1641480456460,18.44084602,150.47,150.39,4.0]
[1641480456660,18.44084602,150.47,150.38,7.00756073]
[1641480456861,18.44084602,150.47,150.4,4.0]
[1641480457060,18.44084602,150.47,150.38,7.00756073]
[1641480457262,6.64341472,150.47,150.39,4.0]
[1641480457664,6.64341472,150.47,150.38,7.00756073]
[1641480457861,6.64341472,150.47,150.39,4.0]
[1641480459066,6.64341472,150.47,150.38,7.00756073]
[1641480459566,6.64341472,150.47,150.41,4.0]
[1641480460665,6.64341472,150.47,150.42,4.0]
[1641480461268,6.64341472,150.47,150.38,7.00756073]
[1641480461468,27.66479,150.48,150.44,4.0]
[1641480462374,27.66479,150.48,150.38,34.67235073]
[1641480462572,27.66479,150.48,150.43,4.0]
[1641480462773,27.66479,150.48,150.42,14.1015009]
[1641480462971,6.6436354,150.46,150.42,14.1015009]
[1641480463671,27.66479,150.44,150.39,14.1015009]
[1641480463871,6.64540138,150.42,150.39,14.1015009]
[1641480464472,6.64540138,150.42,150.39,9.3092009]
[1641480464670,6.64540138,150.42,150.35,9.3092009]
[1641480465672,27.66479,150.37,150.32,44.60752638]
[1641480465873,27.66479,150.37,150.32,7.00756073]
[1641480466874,27.66479,150.37,150.3,7.00756073]
[1641480467677,20.0,150.41,150.3,7.00756073]
[1641480467678,61.97984269,150.31,150.3,7.00756073]
[1641480467877,61.97984269,150.31,150.28,37.59996565]
[1641480468081,61.97984269,150.31,150.26,32.26362638]
[1641480468385,6.65424541,150.29,150.26,1e-08]
[1641480468576,6.65623856,150.27,150.21,38.02630521]
[1641480468976,6.65712479,150.22,150.21,38.02630521]
[1641480469177,6.65712479,150.22,150.17,93.79393092]
[1641480469881,55.32958,150.18,150.16,37.65399316]
[1641480470081,55.32958,150.18,150.16,11.46392475]
[1641480470284,6.66022845,150.17,150.12,56.48098974]
[1641480470685,20.0,150.15,150.12,17.98491449]
[1641480471084,6.66022845,150.17,150.12,17.98491449]
[1641480471283,6.66022845,150.17,150.04,15.41592641]
[1641480471786,27.66479,150.1,150.04,11.41592641]
[1641480472185,6.66111574,150.07,150.04,11.41592641]
[1641480472388,6.66200326,150.05,150.04,11.41592641]
[1641480472586,6.66178136,150.05,150.04,11.41592641]
[1641480473786,61.99136136,150.05,150.04,11.41592641]
[1641480474488,81.99136136,150.05,150.04,11.41592641]
[1641480474688,61.99136136,150.05,150.04,11.41592641]
[1641480476894,61.99136136,150.05,149.99,93.79393092]
[1641480477093,58.60553027,150.05,149.99,67.79393092]
[1641480477394,6.663335,150.02,149.96,4.0]
[1641480477592,6.66377903,150.01,149.96,4.0]
[1641480477794,34.32856903,150.01,149.96,4.0]
[1641480478594,3.27595027,150.0,149.97,1.43858077]
[1641480479095,3.27595027,150.0,149.98,4.0]
[1641480479296,3.27595027,150.0,149.97,1.43858077]
[1641480479497,27.66479,150.01,149.96,4.0]
[1641480480397,26.78500456,150.01,149.97,1.43843615]
[1641480480897,3.27669648,150.0,149.97,1.43843615]
[1641480481497,26.66555574,149.98,149.97,1.43843615]
[1641480481900,54.33034574,149.98,149.92,1.43843615]
[1641480482100,34.33034574,149.98,149.94,4.0]
[1641480482300,34.33034574,149.98,149.95,4.0]
[1641480482502,34.33034574,149.98,149.92,1.43843615]
[1641480482700,34.33034574,149.98,149.86,27.66479]
[1641480482701,3.27669648,149.97,149.93,4.0]
[1641480483701,3.27669648,149.97,149.87,4.0]
[1641480484304,3.27669648,149.97,149.94,1.43774714]
[1641480484704,3.27669648,149.97,149.96,4.0]
[1641480484904,3.27669648,149.97,149.94,5.43774714]
[1641480485105,27.66479,149.98,149.87,1.43774714]
[1641480485311,27.66479,149.98,149.92,4.0]
[1641480485505,6.66800027,149.93,149.87,1.43774714]
[1641480485706,6.66911201,149.9,149.87,1.43774714]
[1641480485909,27.66479,149.88,149.87,1.43774714]
[1641480486507,34.33501412,149.88,149.87,1.43774714]
[1641480486705,34.33501412,149.88,149.87,4.714e-05]
[1641480487306,27.66479,149.88,149.87,4.714e-05]
[1641480487506,34.33479167,149.88,149.85,4.0]
[1641480487708,34.33479167,149.88,149.82,4.0]
[1641480487907,61.99958167,149.88,149.82,4.0]
[1641480488209,20.0,149.87,149.79,4.0]
[1641480488407,6.6717817,149.84,149.76,62.6231]
[1641480488606,6.6717817,149.84,149.78,4.0]
[1641480489008,6.6717817,149.84,149.76,62.6231]
[1641480489210,6.6717817,149.84,149.77,4.0]
[1641480489408,6.6717817,149.84,149.76,62.6231]
[1641480489608,20.0,149.83,149.76,62.6231]
[1641480489908,55.32958,149.77,149.76,62.6231]
[1641480491108,34.33968904,149.77,149.76,62.6231]
[1641480491311,34.33968904,149.77,149.76,66.6231]
[1641480491509,20.0,149.85,149.76,62.6231]
[1641480491708,6.67400808,149.79,149.76,62.6231]
[1641480491910,27.66479,149.78,149.76,62.6231]
[1641480492711,6.67645881,149.77,149.76,62.6231]
[1641480494111,27.66479,149.78,149.76,62.6231]
[1641480494312,6.67222686,149.83,149.77,4.0]
[1641480494512,6.67222686,149.83,149.76,62.6231]
[1641480494712,6.67222686,149.83,149.79,4.0]
[1641480494912,6.67222686,149.83,149.8,4.0]
[1641480495211,6.67222686,149.83,149.76,62.6231]
[1641480495412,6.67267207,149.82,149.76,62.6231]
[1641480495612,6.67334001,149.81,149.76,62.6231]
[1641480496312,6.67334001,149.81,149.76,66.6231]
[1641480496514,27.66479,149.82,149.76,62.6231]
[1641480496714,27.66479,149.82,149.8,4.0]
[1641480496913,27.66479,149.82,149.79,4.0]
[1641480497115,27.66479,149.82,149.76,62.6231]
[1641480497315,27.66479,149.82,149.79,8.0]
[1641480497515,4.64721129,149.89,149.79,8.0]
[1641480497717,6.67089156,149.86,149.85,4.0]
[1641480498017,27.66479,149.87,149.85,4.0]
[1641480498215,27.66479,149.87,149.82,4.0]
[1641480498216,27.66479,149.87,149.86,4.0]
[1641480498717,34.33434681,149.89,149.86,4.0]
[1641480498917,34.33434681,149.89,149.88,4.0]
[1641480499117,27.66479,149.89,149.88,4.0]
[1641480499317,6.66800027,149.93,149.87,4.0]
[1641480499517,6.66800027,149.93,149.82,4.0]
[1641480499724,6.67044659,149.87,149.77,4.0]
[1641480499917,34.3365717,149.84,149.76,62.6231]
[1641480500118,34.3365717,149.84,149.77,8.64721129]
[1641480500319,34.3365717,149.84,149.8,4.0]
[1641480500517,34.3365717,149.84,149.77,8.64721129]
[1641480500720,34.3365717,149.84,149.83,4.0]
[1641480500920,27.66479,149.84,149.83,4.0]
[1641480501220,27.66479,149.86,149.83,4.0]
[1641480501421,6.67000167,149.88,149.8,4.0]
[1641480502021,27.66479,149.85,149.8,4.0]
[1641480502320,27.66479,149.88,149.84,4.0]
[1641480502521,34.33501412,149.88,149.79,4.0]
[1641480502721,34.33501412,149.88,149.83,4.0]
[1641480502923,34.33501412,149.88,149.85,4.0]
[1641480503124,27.66479,149.88,149.76,66.6231]